[Event "Open Nuevo Centro. Jornada 1"]
[Site "Chess.com"]
[Date "2020.06.19"]
[Round "6"]
[White "Gracia Calvo, Andres"]
[Black "Macias Pino, Diego"]
[Result "0-1"]
[WhiteElo "1846"]
[BlackElo "2162"]
[TimeControl "180+2"]
[EndTime "11:40:56 PDT"]
[Termination "Victoria de jesuimafe por abandono"]

1. d4 {[%clk 0:03:00.7]} 1... d5 {[%clk 0:03:00.3]} 2. Nf3 {[%clk 0:03:02]} 2...
Nf6 {[%clk 0:03:00.7]} 3. Bf4 {[%clk 0:03:03.4]} 3... c5 {[%clk 0:02:59.7]} 4.
e3 {[%clk 0:03:04.6]} 4... Nc6 {[%clk 0:02:38.1]} 5. c3 {[%clk 0:03:04.9]} 5...
Bf5 {[%clk 0:02:37.2]} 6. Bd3 {[%clk 0:03:05.2]} 6... Bg6 {[%clk 0:02:37.1]} 7.
O-O {[%clk 0:03:02.3]} 7... e6 {[%clk 0:02:37.1]} 8. h3 {[%clk 0:02:55.2]} 8...
a6 {[%clk 0:02:35.1]} 9. a4 {[%clk 0:02:54.4]} 9... c4 {[%clk 0:02:34.2]} 10.
Bxg6 {[%clk 0:02:43.5]} 10... hxg6 {[%clk 0:02:36.1]} 11. Nbd2 {[%clk
0:02:43.8]} 11... Be7 {[%clk 0:02:35.6]} 12. Re1 {[%clk 0:02:42.5]} 12... b5
{[%clk 0:02:28.5]} 13. axb5 {[%clk 0:02:29]} 13... axb5 {[%clk 0:02:30.4]} 14.
Qc2 {[%clk 0:02:28.5]} 14... O-O {[%clk 0:02:30.2]} 15. e4 {[%clk 0:02:28]}
15... Qd7 {[%clk 0:02:29.2]} 16. exd5 {[%clk 0:02:20.8]} 16... Nxd5 {[%clk
0:02:31.1]} 17. Bg3 {[%clk 0:02:16]} 17... Nb6 {[%clk 0:02:13.5]} 18. Ne4 {[%clk
0:02:11.2]} 18... Na4 {[%clk 0:02:04.3]} 19. Ne5 {[%clk 0:01:59.2]} 19... Nxe5
{[%clk 0:02:04.1]} 20. Bxe5 {[%clk 0:01:54.1]} 20... Ra6 {[%clk 0:02:04.2]} 21.
Nc5 {[%clk 0:01:43.9]} 21... Nxc5 {[%clk 0:02:01.9]} 22. Rxa6 {[%clk 0:01:43.1]}
22... Nxa6 {[%clk 0:02:03.8]} 23. Ra1 {[%clk 0:01:40.7]} 23... Qb7 {[%clk
0:02:03.8]} 24. b3 {[%clk 0:01:31.4]} 24... Nc7 {[%clk 0:01:55.5]} 25. bxc4
{[%clk 0:01:28.1]} 25... bxc4 {[%clk 0:01:57.4]} 26. Rb1 {[%clk 0:01:24.7]}
26... Qc6 {[%clk 0:01:57.2]} 27. Qb2 {[%clk 0:01:22.6]} 27... Nd5 {[%clk
0:01:57.5]} 28. Ra1 {[%clk 0:01:16.9]} 28... Bd6 {[%clk 0:01:49.4]} 29. Bxd6
{[%clk 0:00:58.6]} 29... Qxd6 {[%clk 0:01:51.3]} 30. Rb1 {[%clk 0:00:44.1]}
30... Rc8 {[%clk 0:01:46.2]} 31. Qb7 {[%clk 0:00:42]} 31... Qc6 {[%clk
0:01:42.7]} 32. Qb2 {[%clk 0:00:32]} 32... Nf4 {[%clk 0:01:42.1]} 33. f3 {[%clk
0:00:30.3]} 33... Kh7 {[%clk 0:01:40.8]} 34. Qd2 {[%clk 0:00:29.8]} 34... Nd5
{[%clk 0:01:38.3]} 35. h4 {[%clk 0:00:25]} 35... Qd6 {[%clk 0:01:34.2]} 36. h5
{[%clk 0:00:24.7]} 36... gxh5 {[%clk 0:01:33.7]} 37. Qg5 {[%clk 0:00:23.4]}
37... g6 {[%clk 0:01:14.5]} 38. Kf2 {[%clk 0:00:20.4]} 38... Nxc3 {[%clk
0:01:11.8]} 39. Rb7 {[%clk 0:00:19.8]} 39... Rc7 {[%clk 0:01:12]} 40. Rb8 {[%clk
0:00:19.6]} 40... Qxd4+ {[%clk 0:01:07.4]} 41. Kg3 {[%clk 0:00:15.4]} 41... Rc5
{[%clk 0:00:48.1]} 42. Qe7 {[%clk 0:00:11.2]} 42... Qe5+ {[%clk 0:00:42.7]} 43.
Kh3 {[%clk 0:00:10.4]} 43... Qxb8 {[%clk 0:00:40.6]} 44. Qxf7+ {[%clk
0:00:10.4]} 44... Kh6 {[%clk 0:00:41.6]} 45. Qf4+ {[%clk 0:00:07.9]} 45... Qxf4
{[%clk 0:00:41.9]} 0

[Event "Open Nuevo Centro. Jornada 1"]
[Site "Chess.com"]
[Date "2020.06.19"]
[Round "6"]
[White "Granero Roca, Antonio"]
[Black "Garcia, Jhoel"]
[Result "1-0"]
[WhiteElo "2525"]
[BlackElo "2323"]
[TimeControl "180+2"]
[EndTime "11:41:05 PDT"]
[Termination "Victoria de Somtor por abandono"]

1. Nf3 {[%clk 0:03:01.9]} 1... Nf6 {[%clk 0:03:00.6]} 2. g3 {[%clk 0:03:02.5]}
2... g6 {[%clk 0:03:00.1]} 3. Bg2 {[%clk 0:03:03.9]} 3... Bg7 {[%clk 0:03:01.6]}
4. O-O {[%clk 0:03:05.4]} 4... O-O {[%clk 0:03:02.7]} 5. d3 {[%clk 0:03:06.8]}
5... d6 {[%clk 0:03:01.4]} 6. c4 {[%clk 0:03:07]} 6... e5 {[%clk 0:03:02.3]} 7.
Nc3 {[%clk 0:03:07.6]} 7... Nc6 {[%clk 0:03:03.5]} 8. Bg5 {[%clk 0:03:08.2]}
8... h6 {[%clk 0:03:03.5]} 9. Bxf6 {[%clk 0:03:08.9]} 9... Bxf6 {[%clk 0:03:05]}
10. Nd2 {[%clk 0:03:10.5]} 10... Bg7 {[%clk 0:03:06.1]} 11. Rb1 {[%clk 0:03:11]}
11... Be6 {[%clk 0:03:00.7]} 12. b4 {[%clk 0:03:11.2]} 12... Qd7 {[%clk
0:03:01.3]} 13. b5 {[%clk 0:03:11.4]} 13... Nd8 {[%clk 0:03:02.6]} 14. Nd5
{[%clk 0:03:08.9]} 14... c6 {[%clk 0:03:00.4]} 15. bxc6 {[%clk 0:03:06]} 15...
bxc6 {[%clk 0:03:01.8]} 16. Nc3 {[%clk 0:03:03.4]} 16... f5 {[%clk 0:02:55.6]}
17. Qc2 {[%clk 0:03:03.2]} 17... Kh8 {[%clk 0:02:55.1]} 18. e3 {[%clk
0:02:57.4]} 18... f4 {[%clk 0:02:53.2]} 19. Nce4 {[%clk 0:02:47.9]} 19... Bh3
{[%clk 0:02:40.2]} 20. Qd1 {[%clk 0:02:30.1]} 20... Bxg2 {[%clk 0:02:28.4]} 21.
Kxg2 {[%clk 0:02:30.6]} 21... d5 {[%clk 0:02:29.5]} 22. Nc5 {[%clk 0:02:15.3]}
22... Qe7 {[%clk 0:02:29.8]} 23. Ncb3 {[%clk 0:02:11.3]} 23... Ne6 {[%clk
0:02:14.6]} 24. Qg4 {[%clk 0:02:09.4]} 24... Rf6 {[%clk 0:02:06.3]} 25. Rbc1
{[%clk 0:02:03.7]} 25... h5 {[%clk 0:02:06.3]} 26. Qe2 {[%clk 0:01:53.6]} 26...
Raf8 {[%clk 0:02:05.8]} 27. f3 {[%clk 0:01:52.3]} 27... Kh7 {[%clk 0:01:57.5]}
28. e4 {[%clk 0:01:51.8]} 28... Bh6 {[%clk 0:01:41.4]} 29. cxd5 {[%clk 0:01:47]}
29... cxd5 {[%clk 0:01:36.2]} 30. exd5 {[%clk 0:01:47.2]} 30... Ng5 {[%clk
0:01:36.2]} 31. Ne4 {[%clk 0:01:32.1]} 31... Nxe4 {[%clk 0:01:33.1]} 32. Qxe4
{[%clk 0:01:20.1]} 32... fxg3 {[%clk 0:01:33.3]} 33. hxg3 {[%clk 0:01:20.8]}
33... Bxc1 {[%clk 0:01:33.5]} 34. Nxc1 {[%clk 0:01:19.7]} 34... Rf5 {[%clk
0:01:26.9]} 35. d4 {[%clk 0:01:15]} 35... Qd6 {[%clk 0:01:23.2]} 36. Ne2 {[%clk
0:00:55.7]} 36... exd4 {[%clk 0:01:22]} 37. Nf4 {[%clk 0:00:51]} 37... Qe5
{[%clk 0:00:58.2]} 38. Rd1 {[%clk 0:00:37.5]} 38... h4 {[%clk 0:00:41.6]} 39.
Rh1 {[%clk 0:00:25.9]} 39... g5 {[%clk 0:00:16.7]} 40. Ne6 {[%clk 0:00:23.5]}
40... Qxe4 {[%clk 0:00:16.8]} 41. fxe4 {[%clk 0:00:23.9]} 41... Rf2+ {[%clk
0:00:17.4]} 42. Kh3 {[%clk 0:00:24.7]} 42... R8f3 {[%clk 0:00:18.6]} 43. Nxg5+
{[%clk 0:00:24.5]} 43... Kg6 {[%clk 0:00:19.4]} 44. Nxf3 {[%clk 0:00:25.4]}
44... Rxf3 {[%clk 0:00:20.8]} 45. Kxh4 {[%clk 0:00:26]} 45... Re3 {[%clk
0:00:22.1]} 46. Kg4 {[%clk 0:00:20.1]} 46... Rxe4+ {[%clk 0:00:23.1]} 47. Kf3
{[%clk 0:00:21.1]} 47... Re3+ {[%clk 0:00:24.3]} 48. Kf4 {[%clk 0:00:21.5]}
48... Re5 {[%clk 0:00:22.7]} 49. Kxe5 {[%clk 0:00:21.8]} 1

[Event "Open Nuevo Centro. Jornada 1"]
[Site "Chess.com"]
[Date "2020.06.19"]
[Round "6"]
[White "Gimeno Higueras, Roberto"]
[Black "Lloret Ramis, Juan Jos�"]
[Result "0-1"]
[WhiteElo "2034"]
[BlackElo "1982"]
[TimeControl "180+2"]
[EndTime "11:41:27 PDT"]
[Termination "Victoria de Amiplim por jaque mate"]

1. e4 {[%clk 0:03:01.9]} 1... e6 {[%clk 0:03:00.9]} 2. d4 {[%clk 0:03:02.8]}
2... d5 {[%clk 0:03:02.2]} 3. Nc3 {[%clk 0:03:03.8]} 3... Bb4 {[%clk 0:03:02]}
4. exd5 {[%clk 0:03:04]} 4... exd5 {[%clk 0:03:02.4]} 5. Qh5 {[%clk 0:03:05.1]}
5... Nf6 {[%clk 0:02:52.6]} 6. Qh4 {[%clk 0:03:05.6]} 6... Nc6 {[%clk
0:02:42.4]} 7. Nf3 {[%clk 0:03:00.2]} 7... Ne4 {[%clk 0:02:37]} 8. Qxd8+ {[%clk
0:03:00.1]} 8... Kxd8 {[%clk 0:02:27.8]} 9. Bd2 {[%clk 0:03:00.7]} 9... Nxd2
{[%clk 0:02:28.4]} 10. Kxd2 {[%clk 0:03:01.6]} 10... Bg4 {[%clk 0:02:25.1]} 11.
Bb5 {[%clk 0:02:50.1]} 11... Bxf3 {[%clk 0:02:19.7]} 12. Bxc6 {[%clk 0:02:50.5]}
12... bxc6 {[%clk 0:01:59.7]} 13. gxf3 {[%clk 0:02:51.2]} 13... Kd7 {[%clk
0:01:58]} 14. Rhg1 {[%clk 0:02:51.4]} 14... g6 {[%clk 0:01:58.1]} 15. a3 {[%clk
0:02:51.3]} 15... Bd6 {[%clk 0:01:57.5]} 16. h4 {[%clk 0:02:43.5]} 16... h5
{[%clk 0:01:56.4]} 17. Kd3 {[%clk 0:02:43.8]} 17... Rae8 {[%clk 0:01:52.7]} 18.
Rae1 {[%clk 0:02:44.5]} 18... Be7 {[%clk 0:01:48.5]} 19. Rh1 {[%clk 0:02:38.3]}
19... Bf6 {[%clk 0:01:48.6]} 20. Rxe8 {[%clk 0:02:37.9]} 20... Rxe8 {[%clk
0:01:48.6]} 21. Na4 {[%clk 0:02:39.1]} 21... Be7 {[%clk 0:01:24.2]} 22. c4
{[%clk 0:02:34.3]} 22... dxc4+ {[%clk 0:01:18.4]} 23. Kxc4 {[%clk 0:02:34.2]}
23... Bf6 {[%clk 0:01:19.1]} 24. Nc5+ {[%clk 0:02:28.4]} 24... Kd8 {[%clk
0:01:14.7]} 25. b4 {[%clk 0:02:20.5]} 25... Re2 {[%clk 0:01:11.7]} 26. Rd1
{[%clk 0:02:13.6]} 26... Rc2+ {[%clk 0:01:08.3]} 27. Kb3 {[%clk 0:02:11.9]}
27... Rxf2 {[%clk 0:01:08.9]} 28. d5 {[%clk 0:02:11.8]} 28... Rxf3+ {[%clk
0:01:09.8]} 29. Ka4 {[%clk 0:02:10.9]} 29... cxd5 {[%clk 0:01:04.7]} 30. Rxd5+
{[%clk 0:02:11.8]} 30... Ke8 {[%clk 0:01:05.4]} 31. Kb5 {[%clk 0:01:46.6]} 31...
Rxa3 {[%clk 0:01:03.4]} 32. Kc6 {[%clk 0:01:47.5]} 32... Bxh4 {[%clk 0:00:53.8]}
33. Kxc7 {[%clk 0:01:37.9]} 33... Bg3+ {[%clk 0:00:53.8]} 34. Kc6 {[%clk
0:01:34.7]} 34... h4 {[%clk 0:00:50.8]} 35. Ne4 {[%clk 0:01:34]} 35... h3 {[%clk
0:00:39.2]} 36. Rd2 {[%clk 0:01:07.4]} 36... h2 {[%clk 0:00:32.7]} 37. Nxg3
{[%clk 0:01:07.9]} 37... Rxg3 {[%clk 0:00:33.5]} 38. Rxh2 {[%clk 0:01:08.9]}
38... Ra3 {[%clk 0:00:32.1]} 39. Kd6 {[%clk 0:01:05.2]} 39... Kf8 {[%clk
0:00:30.1]} 40. b5 {[%clk 0:01:03.4]} 40... Kg7 {[%clk 0:00:30.4]} 41. Kc5
{[%clk 0:01:03.5]} 41... Ra5 {[%clk 0:00:27.8]} 42. Kb4 {[%clk 0:01:04.1]} 42...
Ra1 {[%clk 0:00:28.5]} 43. Rc2 {[%clk 0:00:52]} 43... g5 {[%clk 0:00:28.7]} 44.
Kc5 {[%clk 0:00:49.8]} 44... Kg6 {[%clk 0:00:27.5]} 45. Kd5 {[%clk 0:00:48.7]}
45... Ra5 {[%clk 0:00:25.1]} 46. Rc5 {[%clk 0:00:45]} 46... g4 {[%clk
0:00:21.5]} 47. Ke4 {[%clk 0:00:44.8]} 47... Ra4+ {[%clk 0:00:19.5]} 48. Ke3
{[%clk 0:00:44.1]} 48... f5 {[%clk 0:00:19.1]} 49. Rc8 {[%clk 0:00:41.6]} 49...
Rb4 {[%clk 0:00:17.7]} 50. Rg8+ {[%clk 0:00:36.4]} 50... Kf7 {[%clk 0:00:18.2]}
51. Ra8 {[%clk 0:00:36.5]} 51... f4+ {[%clk 0:00:18.2]} 52. Kf2 {[%clk
0:00:36.1]} 52... Rxb5 {[%clk 0:00:18.1]} 53. Rxa7+ {[%clk 0:00:37]} 53... Kf6
{[%clk 0:00:19.5]} 54. Ra2 {[%clk 0:00:35.6]} 54... Kf5 {[%clk 0:00:19.4]} 55.
Kg2 {[%clk 0:00:36.9]} 55... g3 {[%clk 0:00:19.1]} 56. Ra8 {[%clk 0:00:29.4]}
56... Rb2+ {[%clk 0:00:18.9]} 57. Kf3 {[%clk 0:00:29.9]} 57... Rf2# {[%clk
0:00:18.5]} 0

[Event "Open Nuevo Centro. Jornada 1"]
[Site "Chess.com"]
[Date "2020.06.19"]
[Round "6"]
[White "Crevillen Abad, Clemente"]
[Black "Deusa Ballesteros, Lucas "]
[Result "1-0"]
[WhiteElo "1770"]
[BlackElo "1450"]
[TimeControl "180+2"]
[EndTime "11:41:37 PDT"]
[Termination "Victoria de Clementovich por jaque mate"]

1. e4 {[%clk 0:03:01.9]} 1... e6 {[%clk 0:02:56.4]} 2. d4 {[%clk 0:02:59.7]}
2... d5 {[%clk 0:02:54.5]} 3. e5 {[%clk 0:02:59.9]} 3... c5 {[%clk 0:02:54.6]}
4. c3 {[%clk 0:03:00.6]} 4... Nc6 {[%clk 0:02:54.5]} 5. Nf3 {[%clk 0:02:59.8]}
5... Nge7 {[%clk 0:02:54.7]} 6. Bd3 {[%clk 0:02:56]} 6... Nf5 {[%clk 0:02:53.8]}
7. Bxf5 {[%clk 0:02:56.4]} 7... exf5 {[%clk 0:02:55.3]} 8. O-O {[%clk
0:02:56.3]} 8... Be6 {[%clk 0:02:55.7]} 9. Be3 {[%clk 0:02:29.7]} 9... b6 {[%clk
0:02:47]} 10. Na3 {[%clk 0:02:26.5]} 10... Be7 {[%clk 0:02:46.3]} 11. Nc2 {[%clk
0:02:09.2]} 11... O-O {[%clk 0:02:44.9]} 12. Nd2 {[%clk 0:02:07.2]} 12... Rc8
{[%clk 0:02:35.9]} 13. f4 {[%clk 0:02:06.8]} 13... Na5 {[%clk 0:02:28.4]} 14.
dxc5 {[%clk 0:01:47.4]} 14... Bxc5 {[%clk 0:02:21.3]} 15. Bxc5 {[%clk 0:01:48]}
15... bxc5 {[%clk 0:02:21.5]} 16. Nf3 {[%clk 0:01:47.6]} 16... Nc4 {[%clk
0:02:19.3]} 17. b3 {[%clk 0:01:44.8]} 17... Nb6 {[%clk 0:02:18.1]} 18. Qe2
{[%clk 0:01:39.2]} 18... Qc7 {[%clk 0:02:13.2]} 19. Rfd1 {[%clk 0:01:34.8]}
19... Rfd8 {[%clk 0:02:12]} 20. Rd2 {[%clk 0:01:19.8]} 20... c4 {[%clk
0:02:08.8]} 21. b4 {[%clk 0:01:18.1]} 21... Na4 {[%clk 0:02:08.6]} 22. Qe3
{[%clk 0:01:15.5]} 22... Qb6 {[%clk 0:02:09.3]} 23. Nfd4 {[%clk 0:01:13.7]}
23... Rd7 {[%clk 0:01:46.7]} 24. Kf2 {[%clk 0:01:12.1]} 24... Rcd8 {[%clk
0:01:39.6]} 25. Rc1 {[%clk 0:00:57.8]} 25... Nb2 {[%clk 0:01:36.5]} 26. Ne1
{[%clk 0:00:54.4]} 26... Na4 {[%clk 0:01:28.8]} 27. Nef3 {[%clk 0:00:54.6]}
27... h6 {[%clk 0:01:20.5]} 28. Nxe6 {[%clk 0:00:51.4]} 28... fxe6 {[%clk
0:01:20.9]} 29. Qxb6 {[%clk 0:00:51.5]} 29... axb6 {[%clk 0:01:14.9]} 30. Nd4
{[%clk 0:00:51.8]} 30... Kf7 {[%clk 0:01:09.2]} 31. h3 {[%clk 0:00:50.7]} 31...
h5 {[%clk 0:01:06.3]} 32. Kf3 {[%clk 0:00:50.3]} 32... Rb7 {[%clk 0:01:06.5]}
33. Nb5 {[%clk 0:00:48.6]} 33... Rbb8 {[%clk 0:00:58.5]} 34. Nd4 {[%clk
0:00:38.5]} 34... Rb7 {[%clk 0:00:40]} 35. Nb5 {[%clk 0:00:36.6]} 35... Rbb8
{[%clk 0:00:36.7]} 36. Nd4 {[%clk 0:00:37.3]} 36... Rdc8 {[%clk 0:00:35.9]} 37.
g4 {[%clk 0:00:37.5]} 37... hxg4+ {[%clk 0:00:35.2]} 38. hxg4 {[%clk 0:00:37.9]}
38... fxg4+ {[%clk 0:00:36.4]} 39. Kxg4 {[%clk 0:00:38.7]} 39... b5 {[%clk
0:00:37.9]} 40. Rf2 {[%clk 0:00:37.9]} 40... Rb7 {[%clk 0:00:27.7]} 41. f5
{[%clk 0:00:37.8]} 41... exf5+ {[%clk 0:00:26.6]} 42. Nxf5 {[%clk 0:00:38.3]}
42... Ke6 {[%clk 0:00:22.9]} 43. Nd6 {[%clk 0:00:38.8]} 43... Ke7 {[%clk
0:00:21.4]} 44. Nxc8+ {[%clk 0:00:39.3]} 44... Kd7 {[%clk 0:00:20.3]} 45. Nd6
{[%clk 0:00:39.8]} 45... Rb6 {[%clk 0:00:21.6]} 46. Rf7+ {[%clk 0:00:39.6]}
46... Ke6 {[%clk 0:00:22.9]} 47. Rxg7 {[%clk 0:00:40.2]} 47... Kxe5 {[%clk
0:00:24]} 48. Nf5 {[%clk 0:00:38]} 48... Kf6 {[%clk 0:00:19.9]} 49. Rh7 {[%clk
0:00:36.9]} 49... Re6 {[%clk 0:00:19.3]} 50. Rh6+ {[%clk 0:00:37.4]} 50... Kf7
{[%clk 0:00:19]} 51. Rxe6 {[%clk 0:00:37.5]} 51... Kxe6 {[%clk 0:00:20.9]} 52.
Nd4+ {[%clk 0:00:38.1]} 52... Kd6 {[%clk 0:00:21.7]} 53. Kf3 {[%clk 0:00:38.2]}
53... Nb2 {[%clk 0:00:16.3]} 54. Nxb5+ {[%clk 0:00:38.6]} 54... Kc6 {[%clk
0:00:16.4]} 55. Nd4+ {[%clk 0:00:39.2]} 55... Kb6 {[%clk 0:00:17.9]} 56. Rh1
{[%clk 0:00:38.6]} 56... Nd3 {[%clk 0:00:18.3]} 57. a4 {[%clk 0:00:38.4]} 57...
Nxb4 {[%clk 0:00:14.9]} 58. cxb4 {[%clk 0:00:38.6]} 58... Kc7 {[%clk 0:00:15.2]}
59. Rh5 {[%clk 0:00:38.5]} 59... Kb8 {[%clk 0:00:17.1]} 60. Rxd5 {[%clk
0:00:38.4]} 60... Kc8 {[%clk 0:00:19]} 61. Ke4 {[%clk 0:00:38.1]} 61... Kb8
{[%clk 0:00:20.9]} 62. Rh5 {[%clk 0:00:38.6]} 62... Kc8 {[%clk 0:00:22.8]} 63.
Rh7 {[%clk 0:00:39.2]} 63... Kb8 {[%clk 0:00:24.7]} 64. Kd5 {[%clk 0:00:40.1]}
64... Kc8 {[%clk 0:00:26.6]} 65. Kc6 {[%clk 0:00:41]} 65... Kb8 {[%clk
0:00:28.5]} 66. Rg7 {[%clk 0:00:41.4]} 66... Kc8 {[%clk 0:00:30.4]} 67. Rg8#
{[%clk 0:00:41.9]} 1

[Event "Open Nuevo Centro. Jornada 1"]
[Site "Chess.com"]
[Date "2020.06.19"]
[Round "6"]
[White "Mart�nez Carvajal, Juan Francisco"]
[Black "Donate Peris, Jose Manuel"]
[Result "0-1"]
[WhiteElo "1742"]
[BlackElo "1598"]
[TimeControl "180+2"]
[EndTime "11:41:39 PDT"]
[Termination "Victoria de cheryme por abandono"]

1. Nf3 {[%clk 0:03:01.4]} 1... d5 {[%clk 0:02:59.7]} 2. c4 {[%clk 0:03:01.3]}
2... e6 {[%clk 0:02:50.4]} 3. cxd5 {[%clk 0:02:56]} 3... exd5 {[%clk 0:02:50.6]}
4. g3 {[%clk 0:02:54.7]} 4... c5 {[%clk 0:02:50.2]} 5. Bg2 {[%clk 0:02:55.6]}
5... Be6 {[%clk 0:02:50.2]} 6. O-O {[%clk 0:02:56.3]} 6... Nf6 {[%clk
0:02:50.5]} 7. d4 {[%clk 0:02:54.9]} 7... c4 {[%clk 0:02:47.7]} 8. Nc3 {[%clk
0:02:42.6]} 8... Be7 {[%clk 0:02:42.2]} 9. Ne5 {[%clk 0:02:32.3]} 9... Nc6
{[%clk 0:02:34]} 10. b3 {[%clk 0:01:07.5]} 10... cxb3 {[%clk 0:02:20.7]} 11.
axb3 {[%clk 0:00:57.2]} 11... O-O {[%clk 0:02:19.3]} 12. Bg5 {[%clk 0:00:51.9]}
12... h6 {[%clk 0:02:18.3]} 13. Bxf6 {[%clk 0:00:43.3]} 13... Bxf6 {[%clk
0:02:18]} 14. e3 {[%clk 0:00:44.2]} 14... Nxe5 {[%clk 0:02:14.7]} 15. dxe5
{[%clk 0:00:44.1]} 15... Bxe5 {[%clk 0:02:14.9]} 16. Nxd5 {[%clk 0:00:37.5]}
16... Bxa1 {[%clk 0:02:13.2]} 17. Qxa1 {[%clk 0:00:27.2]} 17... Qg5 {[%clk
0:01:51.6]} 18. Nf4 {[%clk 0:00:25.6]} 18... Bxb3 {[%clk 0:01:47.5]} 19. Bxb7
{[%clk 0:00:25.5]} 19... Rab8 {[%clk 0:01:40.8]} 20. Qxa7 {[%clk 0:00:26.4]}
20... Be6 {[%clk 0:01:35.5]} 21. Bg2 {[%clk 0:00:24.2]} 21... Qb5 {[%clk
0:01:27.4]} 22. Nxe6 {[%clk 0:00:22.6]} 22... fxe6 {[%clk 0:01:26.6]} 23. Rd1
{[%clk 0:00:21.4]} 23... Qb6 {[%clk 0:01:23.5]} 24. Qd7 {[%clk 0:00:20.1]} 24...
Rfd8 {[%clk 0:01:17.8]} 25. Qa4 {[%clk 0:00:21.1]} 25... Rxd1+ {[%clk
0:01:16.8]} 26. Qxd1 {[%clk 0:00:21.4]} 26... Qb1 {[%clk 0:01:17.5]} 27. Qxb1
{[%clk 0:00:22]} 27... Rxb1+ {[%clk 0:01:17.5]} 28. Bf1 {[%clk 0:00:23.6]} 28...
Kf7 {[%clk 0:01:18.1]} 29. Kg2 {[%clk 0:00:24.8]} 29... Kf6 {[%clk 0:01:18.4]}
30. Bd3 {[%clk 0:00:25.8]} 30... Ra1 {[%clk 0:01:15.2]} 31. Kf3 {[%clk
0:00:26.5]} 31... g5 {[%clk 0:01:14.8]} 32. h3 {[%clk 0:00:27.4]} 32... Ra3
{[%clk 0:01:14.1]} 33. Be4 {[%clk 0:00:25.2]} 33... Ke5 {[%clk 0:01:12.9]} 34.
Bc2 {[%clk 0:00:25.7]} 34... Ra2 {[%clk 0:01:10.2]} 35. Bb3 {[%clk 0:00:26.3]}
35... Rb2 {[%clk 0:01:10.5]} 36. Bc4 {[%clk 0:00:27.1]} 36... Kf5 {[%clk
0:01:07.2]} 37. Bd3+ {[%clk 0:00:27.3]} 37... Kf6 {[%clk 0:01:06.8]} 38. Bc4
{[%clk 0:00:27.3]} 38... e5 {[%clk 0:01:05.1]} 39. Bd3 {[%clk 0:00:25.4]} 39...
Rb3 {[%clk 0:01:04.5]} 40. Be4 {[%clk 0:00:26.5]} 40... Rb4 {[%clk 0:01:04.9]}
41. Bd5 {[%clk 0:00:26]} 41... Ra4 {[%clk 0:01:03.4]} 42. e4 {[%clk 0:00:23.1]}
42... h5 {[%clk 0:00:58]} 43. g4 {[%clk 0:00:17]} 43... Ra3+ {[%clk 0:00:54.9]}
44. Kg2 {[%clk 0:00:16.8]} 44... h4 {[%clk 0:00:53]} 45. Bc6 {[%clk 0:00:15.9]}
45... Ke7 {[%clk 0:00:51.9]} 46. Bd5 {[%clk 0:00:17]} 46... Kd6 {[%clk
0:00:52.5]} 47. Bb7 {[%clk 0:00:17.7]} 47... Kc5 {[%clk 0:00:53]} 48. Bd5 {[%clk
0:00:16.7]} 48... Kd4 {[%clk 0:00:53]} 49. Bc6 {[%clk 0:00:16]} 49... Kd3 {[%clk
0:00:51]} 50. Bb5+ {[%clk 0:00:15]} 50... Kd2 {[%clk 0:00:51.5]} 51. Bc4 {[%clk
0:00:13.2]} 51... Ke1 {[%clk 0:00:51.4]} 52. Bb5 {[%clk 0:00:12.3]} 52... Rb3
{[%clk 0:00:50]} 53. Bc4 {[%clk 0:00:12.5]} 53... Rb2 {[%clk 0:00:50.8]} 54. Kg1
{[%clk 0:00:11.1]} 54... Rxf2 {[%clk 0:00:50]} 55. Bd5 {[%clk 0:00:12]} 55...
Rf3 {[%clk 0:00:47.8]} 56. Kg2 {[%clk 0:00:11.9]} 56... Ra3 {[%clk 0:00:46.3]}
57. Be6 {[%clk 0:00:11.2]} 57... Kd2 {[%clk 0:00:46.3]} 58. Bf5 {[%clk
0:00:12.4]} 58... Ke3 {[%clk 0:00:46.3]} 59. Bg6 {[%clk 0:00:12.3]} 59... Ra2+
{[%clk 0:00:46.2]} 60. Kg1 {[%clk 0:00:12.5]} 60... Kf3 {[%clk 0:00:46.7]} 61.
Bf5 {[%clk 0:00:13.5]} 61... Kg3 {[%clk 0:00:46.7]} 62. Kf1 {[%clk 0:00:14.6]}
62... Kxh3 {[%clk 0:00:46.7]} 63. Ke1 {[%clk 0:00:15.2]} 63... Kg3 {[%clk
0:00:47.2]} 64. Kf1 {[%clk 0:00:15.9]} 64... h3 {[%clk 0:00:47.7]} 0